Cogmind - Beta 14 @@@ ROGUE MODE // 2024.08.14 @ 00:50:32 Player: Dzuchun Result: Destroyed by 0H-IMQ(R) with Subdweller Machine Gun Performance ------------- Evolutions (0) 0 Regions Visited (2) 400 Robots Destroyed (45) 225 Value Destroyed (790) 790 Prototype IDs (3) 60 Alien Tech Used (0) 0 Bonus (4) 4 TOTAL SCORE: 1479 Bonus ------- High Alert Combat Kills 4 Cogmind --------- Core Integrity 0/250 Matter 88/300 Energy 85/100 System Corruption 6% Temperature Cool (0) Movement Core (1400) Ox27 Location -10/Subcaves Parts ------- > --- POWER (1) -------- (None) > --- PROPULSION (2) --- (None) > --- UTILITY (2) ------ Huge Storage Unit Signal Interpreter > --- WEAPON (2) ------- Grenade Launcher > --- INVENTORY (25) --- Light Ion Engine Aluminum Leg Aluminum Leg Small Storage Unit High-capacity Matter Pod (0) Structural Scanner Visual Processing Unit Sensor Array Terrain Scanner Improved Terrain Scanner Scrap Shield Grenade Launcher Mining Laser Peak State ------------ > --- POWER ------------ Light Ion Engine > --- PROPULSION ------- Aluminum Leg Myomer Leg > --- UTILITY ---------- Huge Storage Unit Signal Interpreter > --- WEAPON ----------- Small Laser Light Assault Rifle > --- INVENTORY -------- Ion Engine Light Ion Engine Aluminum Leg Aluminum Leg Small Storage Unit High-capacity Matter Pod Structural Scanner Visual Processing Unit Sensor Array Terrain Scanner Improved Terrain Scanner Scrap Shield Grenade Launcher Grenade Launcher Mining Laser [Rating: 15] Favorites ----------- Power Light Ion Engine Engine Light Ion Engine Propulsion Aluminum Leg Leg Aluminum Leg Wheel Wheel Utility Huge Storage Unit Device Structural Scanner Storage Huge Storage Unit Processor Signal Interpreter Weapon Assault Rifle Energy Gun Small Laser Ballistic Gun Assault Rifle Launcher Grenade Launcher Special Weapon Mining Laser Build | -11 -10 -10 ------- Run | Yrd Mat Sub Slots Evolved . | . . . Power . | . . . Propulsion . | . . . Utility . | . . . Weapon . | . . . Parts Attached 44 | 8 32 4 Power 8 | 1 6 1 Engine 8 | 1 6 1 Core . | . . . Reactor . | . . . Propulsion 10 | 2 7 1 Treads . | . . . Leg 7 | . 6 1 Wheel 3 | 2 1 . Hover . | . . . Flight . | . . . Utility 10 | 3 7 . Device 5 | 2 3 . Storage 4 | 1 3 . Processor 1 | . 1 . Hackware . | . . . Protection . | . . . Artifact . | . . . Weapon 16 | 2 12 2 Energy Gun 2 | . 1 1 Energy Cannon . | . . . Ballistic Gun 8 | 2 6 . Ballistic Cannon . | . . . Launcher 3 | . 2 1 Special Weapon 3 | . 3 . Impact Weapon . | . . . Slashing Weapon . | . . . Piercing Weapon . | . . . Special Melee Weapon . | . . . Unidentified Prototypes . | . . . Corrupted Parts 1 | . . 1 System Corruption 6 | . . 6 Parts Lost 10 | . 4 6 Power 3 | . 1 2 Propulsion 2 | . . 2 Utility 2 | . 2 . Weapon 3 | . 1 2 Highest Loss Streak 6 | . 2 6 To Critical Strikes . | . . . Average Slot Usage (%) 97 | . 97 96 Engine 13 | . 12 13 Leg 26 | . 26 26 Wheel 1 | . 1 . Device 12 | . 13 . Storage 13 | . 13 14 Processor 1 | . . 14 Energy Gun 8 | . 7 13 Ballistic Gun 18 | . 18 13 Peak Build Rating 15 | 9 9 15 Average Rating 7 | 6 7 11 On Entrance 5 | . 9 8 Naked Turns . | . . . Heaviest Build 90 | 15 90 85 Greatest Support 35 | 20 26 35 Greatest Overweight (x) 4 | . 4 4 Average Overweight (x) 1 | . 1 3 Largest Inventory Capacity 25 | 8 25 25 Average Capacity 18 | 6 18 25 Most Carried 16 | 5 13 16 Average Carried 10 | 3 10 15 Final Capacity 25 | 5 25 25 Final Carried 14 | 5 13 14 Class Distribution -------------------- 69% | Scavenger-Mutant 30% | Mutant Dominant Class ---------------- Scavenger-Mutant | -10/Materials Scavenger-Mutant | -10/Subcaves Resources | -11 -10 -10 ----------- Run | Yrd Mat Sub Matter Collected 978 | 343 604 31 Remotely . | . . . Salvage Created 1105 | 137 921 47 Parts 102 | 12 89 1 Haulers Intercepted . | . . . Recyclers Shooed . | . . . Parts Field Recycled . | . . . Retrieved Matter . | . . . Parts Self-Destructed . | . . . Prevented . | . . . Kills | -11 -10 -10 ------- Run | Yrd Mat Sub Combat Hostiles Destroyed 21 | . 20 1 Guns 17 | . 16 1 AOE 4 | . 4 . Classes Destroyed 9 | 2 6 1 Worker 4 | . 4 . Builder 9 | . 9 . Tunneler 6 | 4 2 . Recycler 1 | 1 . . Operator 1 | . 1 . Watcher 3 | . 3 . Swarmer 6 | . 6 . Grunt 14 | . 14 . Subdweller 1 | . . 1 Best Kill Streak 9 | 4 9 1 Combat Bots Only 3 | . 3 1 Max Kills in Single Turn 2 | 1 2 1 Gunslinging . | . . . Exploded 2 | . 2 . Melee . | . . . Uniques/NPCs Destroyed . | . . . Combat | -11 -10 -10 -------- Run | Yrd Mat Sub Hostile Shots Fired 131 | . 88 43 Missed 32 | . 22 10 Damage Taken 1441 | 3 705 733 Core 261 | . 133 128 Absorbed by Shields . | . . . Core Remaining (%) 100 | 100 . . Volleys Fired 112 | 11 92 9 Largest 2 | 2 2 2 Hottest 100 | 40 100 60 Shots Fired 210 | 22 170 18 Gun 190 | 22 150 18 Cannon . | . . . Launcher 12 | . 12 . Special 8 | . 8 . Kinetic 176 | 22 145 9 Thermal 22 | . 13 9 Explosive 12 | . 12 . Electromagnetic . | . . . Robot Hit Streak 9 | 2 9 7 Robot Miss Streak 6 | 3 6 1 Penetration Max . | . . . Secondary Targets 3 | . 3 . Max Gunslinging Chain 1 | . 1 . Shots Hit Robots 110 | 11 92 7 Core Hits 64 | 6 55 3 Critical Kills . | . . . Critical Parts Destroyed . | . . . Critical Strikes . | . . . Melee Attacks . | . . . Impact . | . . . Slashing . | . . . Piercing . | . . . Sneak Attacks . | . . . Combat Hostiles . | . . . Follow-up Attacks . | . . . Damage Inflicted 1701 | 155 1476 70 Guns 1341 | 149 1122 70 Cannons . | . . . Explosions 343 | . 343 . Melee . | . . . Ramming 17 | 6 11 . Kinetic 1248 | 149 1064 35 Thermal 93 | . 58 35 Explosive 343 | . 343 . Electromagnetic . | . . . Impact . | . . . Slashing . | . . . Piercing . | . . . Highest Corruption 6 | . . 6 Average Corruption 6 | . . 6 Corruption Purged . | . . . Corruption Blocked . | . . . Effects 1 | . . 1 Message Errors 1 | . . 1 Overload Shots . | . . . Overflow Damage 4 | . 4 . Projectiles . | . . . Explosions 4 | . 4 . Melee . | . . . Knockbacks . | . . . Impact . | . . . Kinetic . | . . . Secondary . | . . . Self-Inflicted Damage 101 | 3 98 . Shots 3 | . 3 . Rammed 1 | 1 . . Targets Rammed 6 | 1 5 . Kicked 5 | . 5 . Crushed . | . . . Highest Temperature 102 | . 102 . Average Temperature 35 | . 35 . Received Heat Transfer 222 | . 171 51 Siege Activations . | . . . Robots Corrupted . | . . . Combat Hostiles . | . . . Parts Fried . | . . . Impact Corruptions . | . . . Robots Melted . | . . . Combat Hostiles . | . . . Parts Melted . | . . . Heat Transferred 200 | . 125 75 Parts Sabotaged . | . . . Parts Stolen . | . . . Parts Stripped . | . . . Power Chain Reactions . | . . . Alert | -11 -10 -10 ------- Run | Yrd Mat Sub Peak Influence 430 | 25 430 . Initial 16 | . 16 . Average 243 | 11 252 . Maximum Alert Level 2 | . 2 . Low Security (%) 27 | 100 24 . Level 1 71 | . 74 . Level 2 1 | . 1 . Level 3 . | . . . Level 4 . | . . . Level 5 . | . . . High Security . | . . . Max Security . | . . . Squads Dispatched 4 | . 4 . Investigation 2 | . 2 . Extermination . | . . . Reinforcement 2 | . 2 . Assault . | . . . Garrison . | . . . Intercept . | . . . Searches Triggered . | . . . Construction Impeded . | . . . Haulers Reinforced . | . . . Active Scanning Responses . | . . . Cargo Convoy Interrupts . | . . . Stealth | -11 -10 -10 --------- Run | Yrd Mat Sub Distress Signals 2 | . 2 . Communications Jammed . | . . . Distress Signals . | . . . Times Spotted 42 | . 34 8 Peak Tracking Total 8 | . 5 8 Tactical Retreats . | . . . Traps | -11 -10 -10 ------- Run | Yrd Mat Sub Traps Triggered . | . . . Indirectly . | . . . Trap Hack Attempts . | . . . Triggered . | . . . Disarmed . | . . . Reprogrammed . | . . . Reused . | . . . Traps Extracted . | . . . Installed . | . . . Triggered . | . . . Machines | -11 -10 -10 ---------- Run | Yrd Mat Sub Machines Disabled 4 | . 4 . Max in Single Turn 1 | . 1 . Machines Repaired . | . . . Machines Dismantled . | . . . Machines Sabotaged . | . . . Overloaded Fab Kills . | . . . Hacking | -11 -10 -10 --------- Run | Yrd Mat Sub Machines Accessed 7 | . 7 . Terminals 6 | . 6 . Fabricators . | . . . Repair Stations 1 | . 1 . Recycling Units . | . . . Scanalyzers . | . . . Garrison Access . | . . . Total Hacks 22 | . 22 . Successful 13 | . 13 . Failed 9 | . 9 . Catastrophic . | . . . Database Lockouts . | . . . Manual 12 | . 12 . Terminals 19 | . 19 . Fabricators . | . . . Repair Stations 3 | . 3 . Recycling Units . | . . . Scanalyzers . | . . . Garrison Access . | . . . Terminal Hacks 6 | . 6 . Prototype ID Bank 1 | . 1 . Branch Access Points 1 | . 1 . Locate Traps 1 | . 1 . Hauler Manifests 2 | . 2 . Zone Layout 1 | . 1 . Fabricator Hacks . | . . . Repair Station Hacks 2 | . 2 . Scan Component 2 | . 2 . Recycling Unit Hacks . | . . . Scanalyzer . | . . . Garrison Access Hacks . | . . . Unauthorized Hacks 4 | . 4 . Terminals 4 | . 4 . Botnet 4 | . 4 . Fabricators . | . . . Repair Stations . | . . . Recycling Units . | . . . Scanalyzers . | . . . Garrison Access . | . . . Data Cores Recovered . | . . . Used . | . . . Hacking Detections 6 | . 6 . Full Trace Events 6 | . 6 . Feedback Events . | . . . Feedback Blocked . | . . . Robot Schematics Acquired . | . . . Robots Built . | . . . Authchips . | . . . Time . | . . . Total Robot Build Rating . | . . . Part Schematics Acquired . | . . . Parts Built . | . . . Authchips . | . . . Time . | . . . Total Part Build Rating . | . . . Parts Repaired . | . . . Time . | . . . Parts Recycled . | . . . Recycled Matter . | . . . Retrieved Matter . | . . . Retrieved Components . | . . . Parts Scanalyzed . | . . . Part Schematics Acquired . | . . . Parts Damaged . | . . . Bothacking | -11 -10 -10 ------------ Run | Yrd Mat Sub Used RIF Installer . | . . . Robots Hacked . | . . . Non-combat . | . . . Combat . | . . . Robot Hacks Applied . | . . . Relay Couplers Released . | . . . Fabnet Peak Effective % . | . . . Robots Rewired . | . . . Allies Hacked . | . . . Hacks Repelled . | . . . Allies | -11 -10 -10 -------- Run | Yrd Mat Sub Total Allies . | . . . Largest Group . | . . . Highest-Rated Group . | . . . Highest-Rated Ally . | . . . Total Orders . | . . . Ally Attacks . | . . . Total Damage . | . . . Kills . | . . . Allies Corrupted . | . . . Allies Melted . | . . . Intel | -11 -10 -10 ------- Run | Yrd Mat Sub Robot Analysis Total . | . . . Derelict Logs Recovered 1 | . . 1 Drone Launches . | . . . Drone Recoveries . | . . . Exploration | -11 -10 -10 ------------- Run | Yrd Mat Sub Turns Passed 3270 | 116 2932 222 Spaces Moved 1206 | 68 1082 56 Core 1 | 1 . . Treads . | . . . Legs 1060 | . 1004 56 Wheels 145 | 67 78 . Hover . | . . . Flight . | . . . Fastest Speed 50 | 50 80 260 Average Speed 229 | 79 233 338 Slowest Speed 400 | 80 400 400 Overloaded Moves . | . . . Propulsion Burnouts . | . . . Robots Hopped . | . . . Cave-ins Triggered . | . . . Exploration Rate (%) 35 | 4 97 5 Regions Visited 2 Branch Regions 1 Pre-discovered Areas . | . . . Known Exits Taken 1 | . 1 . Unknown Exits Taken 1 | 1 . . Scrap Searched . | . . . Spaces Dug 8 | . 8 . Terrain Destroyed 61 | . 61 . Melee . | . . . Projectile 8 | . 8 . AOE 53 | . 53 . Terrain Rammed . | . . . Walls Destroyed . | . . . Machines Disabled . | . . . Actions | -11 -10 -10 --------- Run | Yrd Mat Sub Total 1463 | 104 1288 71 Wait 56 | 12 43 1 Move 1204 | 67 1081 56 Hop . | . . . Pick Up 22 | 4 17 1 Fast Attach 13 | 8 5 . Attach 4 | . 2 2 Detach 2 | 1 1 . Swap 27 | . 25 2 Drop 17 | . 17 . Fire 112 | 11 92 9 Melee . | . . . Ram 1 | 1 . . Kick 5 | . 5 . Crush . | . . . Escape Stasis . | . . . Rewire . | . . . Trap . | . . . Miscellaneous . | . . . Route ------- -11/Scrapyard -10/Materials (discovered 6 exits: [*Mat x3] / *Min x2 / *Sub) -10/Subcaves History --------- Turn | Location | Event 8 | -11/Scrapyard | Discovered new exit (range 15) 117 | -11/Scrapyard | Entered Materials 332 | -10/Materials | Build established: Mutant 393 | -10/Materials | Discovered new exit (range 6) 575 | -10/Materials | Identified exit to Mines 636 | -10/Materials | Discovered new exit (range 16) 861 | -10/Materials | Discovered new exit (range 16) 1332 | -10/Materials | Core integrity fell below 50% 1649 | -10/Materials | Build established: Scavenger-Mutant 2406 | -10/Materials | Discovered new exit (range 3) 2746 | -10/Materials | Discovered new exit (range 10) 3045 | -10/Materials | Identified exit to Subcaves 3049 | -10/Materials | Entered Subcaves 3167 | -10/Subcaves | A swath of the cavern ceiling suddenly collapsed 3217 | -10/Subcaves | Shifting Twisted Machinery released Sub. Laser 3223 | -10/Subcaves | Shifting Twisted Machinery released Sub. Machine Gun 3232 | -10/Subcaves | Ambushed by swarm of Subdwellers 3266 | -10/Subcaves | Core integrity fell below 20% 3271 | -10/Subcaves | Destroyed by 0H-IMQ(R) with Subdweller Machine Gun Last Messages --------------- Data stored: Storage entrances (x1). 03167_ 1R-8PA(h) crushed by falling debris. 03167_ 1R-8PA(h) system corrupted by crushing effect. A swath of the cavern ceiling suddenly collapses. 03167_ 1R-8PA(h) system terminally corrupted. 03169_ Acquired 31 matter. 03172_ Subatomizers dissect the Corrupted Myomer Leg. 03177_ Integrated Corrupted Myomer Leg (+6). 03177_ Complication: System interference. 03177_ Signal Interpreter temporarily disabled. Sub. Laser falls loose from the Twisted Machinery. Sub. Machine Gun falls loose from the Twisted Machinery. 03258_ Aluminum Leg destroyed. 03260_ =9ZXFJJE 4 YTLD#5G80X: 03260_ Lgt. Ion Engine destroyed. 03264_ 93-LN4(R) destroyed. 03266_ Ion Engine destroyed. 03267_ Sml. Laser destroyed. 03268_ Myomer Leg destroyed. 03269_ Lgt. Assault Rifle destroyed. Map ----- +----------------------------------------------------+ | ?????????????????????????????????????????????????? | | ?????????????????????????????????????????????????? | | ?????????????????????????????????????????????????? | | ?????????????????????????????????????????????????? | | ?????????????????????????????????????????????????? | | ?????????????????????????????????????????????????? | | ?????????????????????????????????????????????????? | | ?????????????????????????????????????????????????? | | ?????????????????????????????????????????????????? | | ?????????????????????????#???????????????????????? | | ????????????????????????? ???????????????????????? | | ????????????????????????? ???????????????????????? | | ???????????????????????## ???????????????????????? | | ???????????????????????# ???????????????????????? | | ???????????????????????# ???????????????????????? | | ???????????????????????# ???????????????????????? | | ??????????????????????? R#??????????????????????? | | ?????????????????????### #??????????????????????? | | ?????????????????????# #??????????????????????? | | ?????????????????????? #??????????????????????? | | ??????????????????????? ##?###?????????????????? | | ???????????????????????? "## ###???????????????? | | ????????????????????????# "[ " ""???????????????? | | ????????????????????????# R[""" "????????????????? | | ????????????????????????# R"""#??????????????????? | | ????????????????????????#@%R"##??????????????????? | | ????????????????????????#RRR #???????????????????? | | ????????????????????????## ##??????????????????? | | ?????????????????????????## #??????????????????? | | ?????????????????????????## ##?????????????????? | | ?????????????????????????# # # ???????????????? | | ?????????????????????????# #""""#???????????????? | | ?????????????????????????##""#"#"#???????????????? | | ??????????????????????????# "#####???????????????? | | ?????????????????????????## #"#??????????????????? | | ?????????????????????????#"""##??????????????????? | | ?????????????????????????#""##???????????????????? | | ?????????????????????????## #????????????????????? | | ?????????????????????????#" ##?????????????????### | | ?????????????????????? ?##""###???####???###### | | ??????????????????????? #"" #"#??## ##### | | ????????????????????????#"###""#??# | | ????????????????????????### ##"##?# ## | | ???????????????????????????# ##"#### ### | | ????????????????????????????# #" ### ####### | | ??????????????????????????###""## # ##??# | | ????????????????????????# #" ##"# ##??# | | ????????????????????????# ##" ###??# | | ????????????????????????## #?####?? | | ?????????????????????????## ?????????? ###### | +----------------------------------------------------+ Best States ------------- Heat Dissipation 25 Energy Generation 10 Energy Capacity 250 Matter Stores 300 Matter Capacity 300 Sight Range 16 Terrain Scan Range 16 Terrain Scan Density 10 Evasion (%) 55 Item Schematics ----------------- None Robot Schematics ------------------ None Fabricated ------------ Nothing Alien Tech Used ----------------- None Achievements -------------- None Challenges ------------ None Game ------ Seed IntegratedCobblerRedirector Manual? 0 Play Time 00:35:22 Cumulative 11.3 hours Start 2024.08.13 @ 23:55:59 End 2024.08.14 @ 00:50:32 Sessions 1 Manual Loads 0 Difficulty Rogue Special Mode None Game No. 16 Rogue 16 Adventurer 0 Explorer 0 Win Type - Total 0 Types 0/0/0/0/0/0/0/0/0 Lore% 7 Gallery% 13 Achievement% 15 Wizard Run 0 Options --------- Layout 0 ASCII 0 Keyboard 1 Movement Vi Keybinds 0 Fullscreen 1 Font 18/X11Bold Map View 76x50 Zoom Use 0% Tactical HUD 1 Map Filters NONE Filters NONE Steam 1 RUN: d47faca1-81c5-4405-9ee0-1235b3ac7c37